[Event "December 12 Early 2023"]
[Site "https://www.chess.com"]
[Date "2023.12.12"]
[Round "1"]
[White "Srivatsan Karthikeyan"]
[Black "Aghasiyev, Kamal"]
[Result "0-1"]
[Board "200"]
[TimeControl "180+1"]
[WhiteFideId "25684248"]
[BlackFideId "13402854"]
[WhiteElo "2219"]
[BlackElo "2566"]
[WhiteTeam "IND"]
[BlackTeam "AZE"]
[WhiteClock "0:00:09"]
[BlackClock "0:00:08"]

1. e4 {[%clk 0:02:54]}  e5 {[%clk 0:02:55]} 2. Nf3 {[%clk 0:02:53]}  Nc6 {[%clk 0:02:55]} 3. Bc4 {[%clk 0:02:51]}  Bc5 {[%clk 0:02:55]} 4. c3 {[%clk 0:02:50]}  Nf6 {[%clk 0:02:55]} 5. d3 {[%clk 0:02:46]}  d6 {[%clk 0:02:55]} 6. h3 {[%clk 0:02:46]}  h6 {[%clk 0:02:54]} 7. Be3 {[%clk 0:02:42]}  Bxe3 {[%clk 0:02:51]} 8. fxe3 {[%clk 0:02:42]}  O-O {[%clk 0:02:48]} 9. O-O {[%clk 0:02:41]}  Be6 {[%clk 0:02:46]} 10. Nbd2 {[%clk 0:02:38]}  Re8 {[%clk 0:02:12]} 11. b4 {[%clk 0:02:35]}  d5 {[%clk 0:02:04]} 12. exd5 {[%clk 0:02:31]}  Nxd5 {[%clk 0:01:56]} 13. Bxd5 {[%clk 0:02:29]}  Qxd5 {[%clk 0:01:54]} 14. Qc2 {[%clk 0:02:26]}  Rad8 {[%clk 0:01:51]} 15. Ne1 {[%clk 0:02:25]}  a6 {[%clk 0:01:03]} 16. e4 {[%clk 0:02:23]}  Qd6 {[%clk 0:00:53]} 17. Rd1 {[%clk 0:02:15]}  a5 {[%clk 0:00:48]} 18. b5 {[%clk 0:02:07]}  Qc5+ {[%clk 0:00:47]} 19. Kh1 {[%clk 0:02:05]}  Qxb5 {[%clk 0:00:44]} 20. Rb1 {[%clk 0:02:04]}  Qa6 {[%clk 0:00:33]} 21. Nb3 {[%clk 0:02:04]}  Qa7 {[%clk 0:00:31]} 22. Qf2 {[%clk 0:01:59]}  Qxf2 {[%clk 0:00:30]} 23. Rxf2 {[%clk 0:02:00]}  b6 {[%clk 0:00:29]} 24. Rd2 {[%clk 0:01:52]}  f5 {[%clk 0:00:19]} 25. exf5 {[%clk 0:01:43]}  Bxf5 {[%clk 0:00:19]} 26. Rbd1 {[%clk 0:01:43]}  a4 {[%clk 0:00:19]} 27. Nc1 {[%clk 0:01:40]}  Na5 {[%clk 0:00:18]} 28. Ne2 {[%clk 0:01:40]}  e4 {[%clk 0:00:17]} 29. Ng3 {[%clk 0:01:37]}  e3 {[%clk 0:00:14]} 30. Re2 {[%clk 0:01:37]}  Bg6 {[%clk 0:00:13]} 31. Nf1 {[%clk 0:01:37]}  Rf8 {[%clk 0:00:11]} 32. Nxe3 {[%clk 0:01:36]}  c5 {[%clk 0:00:11]} 33. c4 {[%clk 0:01:31]}  Nc6 {[%clk 0:00:11]} 34. Nf3 {[%clk 0:01:29]}  Bh5 {[%clk 0:00:10]} 35. g4 {[%clk 0:01:28]}  Rxf3 {[%clk 0:00:09]} 36. Kg2 {[%clk 0:01:24]}  Nd4 {[%clk 0:00:09]} 37. gxh5 {[%clk 0:01:21]}  Re8 {[%clk 0:00:09]} 38. Rde1 {[%clk 0:01:17]}  Ref8 {[%clk 0:00:10]} 39. Rd2 {[%clk 0:01:06]}  R3f4 {[%clk 0:00:10]} 40. Nd5 {[%clk 0:01:04]}  R4f7 {[%clk 0:00:10]} 41. Re7 {[%clk 0:00:58]}  Rxe7 {[%clk 0:00:08]} 42. Nxe7+ {[%clk 0:00:58]}  Kh7 {[%clk 0:00:08]} 43. Nd5 {[%clk 0:00:58]}  b5 {[%clk 0:00:07]} 44. Rf2 {[%clk 0:00:43]}  Rxf2+ {[%clk 0:00:06]} 45. Kxf2 {[%clk 0:00:43]}  b4 {[%clk 0:00:07]} 46. Ke3 {[%clk 0:00:40]}  g6 {[%clk 0:00:06]} 47. hxg6+ {[%clk 0:00:24]}  Kxg6 {[%clk 0:00:07]} 48. Nb6 {[%clk 0:00:25]}  b3 {[%clk 0:00:06]} 49. axb3 {[%clk 0:00:23]}  a3 {[%clk 0:00:06]} 50. Nd5 {[%clk 0:00:19]}  a2 {[%clk 0:00:07]} 51. Nf4+ {[%clk 0:00:19]}  Kh7 {[%clk 0:00:07]} 52. b4 {[%clk 0:00:20]}  a1=Q {[%clk 0:00:08]} 53. bxc5 {[%clk 0:00:20]}  Qg1+ {[%clk 0:00:07]} 54. Ke4 {[%clk 0:00:20]}  Nc6 {[%clk 0:00:07]} 55. Ne6 {[%clk 0:00:19]}  Nb4 {[%clk 0:00:06]} 56. d4 {[%clk 0:00:17]}  Qh1+ {[%clk 0:00:07]} 57. Ke5 {[%clk 0:00:17]}  Qxh3 {[%clk 0:00:06]} 58. Kd6 {[%clk 0:00:16]}  Kg8 {[%clk 0:00:06]} 59. d5 {[%clk 0:00:15]}  Kf7 {[%clk 0:00:07]} 60. c6 {[%clk 0:00:16]}  Qg3+ {[%clk 0:00:06]} 61. Kd7 {[%clk 0:00:16]}  Na6 {[%clk 0:00:06]} 62. c7 {[%clk 0:00:15]}  Nxc7 {[%clk 0:00:06]} 63. Nxc7 {[%clk 0:00:16]}  Qf4 {[%clk 0:00:06]} 64. c5 {[%clk 0:00:15]}  Qf5+ {[%clk 0:00:06]} 65. Kc6 {[%clk 0:00:15]}  h5 {[%clk 0:00:04]} 66. d6 {[%clk 0:00:15]}  h4 {[%clk 0:00:04]} 67. d7 {[%clk 0:00:14]}  Ke7 {[%clk 0:00:04]} 68. Nd5+ {[%clk 0:00:10]}  Kd8 {[%clk 0:00:04]} 69. Kd6 {[%clk 0:00:09]}  Qxd7+ {[%clk 0:00:05]} 70. Ke5 {[%clk 0:00:09]}  Qxd5+ {[%clk 0:00:05]} 71. Kxd5 {[%clk 0:00:09]}  h3 {[%clk 0:00:06]} 72. Ke4 {[%clk 0:00:10]}  h2 {[%clk 0:00:07]} 73. Kd5 {[%clk 0:00:09]}  h1=Q+ {[%clk 0:00:08]} 0-1

[Event "December 12 Early 2023"]
[Site "https://www.chess.com"]
[Date "2023.12.12"]
[Round "1"]
[White "Martinez Fernandez, Adrian"]
[Black "Nechitaylo, Nikita"]
[Result "1-0"]
[Board "201"]
[TimeControl "180+1"]
[WhiteFideId "32049048"]
[BlackFideId "34138161"]
[WhiteElo "2565"]
[BlackElo "2219"]
[WhiteTeam "ESP"]
[BlackTeam "UKR"]
[WhiteClock "0:00:56"]
[BlackClock "0:00:00"]

1. e4 {[%clk 0:03:00]}  c5 {[%clk 0:03:00]} 2. Nf3 {[%clk 0:03:00]}  Nc6 {[%clk 0:03:01]} 3. Nc3 {[%clk 0:02:44]}  Nf6 {[%clk 0:02:58]} 4. h3 {[%clk 0:02:36]}  d5 {[%clk 0:02:57]} 5. exd5 {[%clk 0:02:30]}  Nxd5 {[%clk 0:02:58]} 6. Bc4 {[%clk 0:02:27]}  Nxc3 {[%clk 0:02:51]} 7. bxc3 {[%clk 0:02:28]}  e6 {[%clk 0:02:43]} 8. O-O {[%clk 0:02:28]}  Be7 {[%clk 0:02:43]} 9. d4 {[%clk 0:02:21]}  O-O {[%clk 0:02:41]} 10. Qe2 {[%clk 0:02:09]}  b6 {[%clk 0:02:32]} 11. Rd1 {[%clk 0:02:09]}  Qc7 {[%clk 0:02:31]} 12. Bd3 {[%clk 0:02:02]}  Rd8 {[%clk 0:02:22]} 13. Ng5 {[%clk 0:01:57]}  Bxg5 {[%clk 0:02:04]} 14. Bxg5 {[%clk 0:01:58]}  f6 {[%clk 0:02:05]} 15. Be3 {[%clk 0:01:54]}  e5 {[%clk 0:01:56]} 16. dxc5 {[%clk 0:01:50]}  bxc5 {[%clk 0:01:53]} 17. Bxc5 {[%clk 0:01:50]}  Be6 {[%clk 0:01:40]} 18. Qh5 {[%clk 0:01:43]}  g6 {[%clk 0:01:38]} 19. Qh4 {[%clk 0:01:44]}  Qf7 {[%clk 0:01:15]} 20. a4 {[%clk 0:01:34]}  Na5 {[%clk 0:01:04]} 21. Rdb1 {[%clk 0:01:24]}  Rac8 {[%clk 0:00:57]} 22. Be3 {[%clk 0:01:20]}  Nc4 {[%clk 0:00:30]} 23. Bxa7 {[%clk 0:01:17]}  Qxa7 {[%clk 0:00:27]} 24. Qxf6 {[%clk 0:01:16]}  Qf7 {[%clk 0:00:24]} 25. Qh4 {[%clk 0:01:16]}  Nd2 {[%clk 0:00:21]} 26. Rb6 {[%clk 0:01:10]}  Bd5 {[%clk 0:00:15]} 27. Rf6 {[%clk 0:01:07]}  Qb7 {[%clk 0:00:10]} 28. Bxg6 {[%clk 0:01:03]}  Rf8 {[%clk 0:00:03]} 29. Rb6 {[%clk 0:00:57]}  Qe7 {[%clk 0:00:00]} 30. Qxe7 {[%clk 0:00:56]} 1-0

[Event "December 12 Early 2023"]
[Site "https://www.chess.com"]
[Date "2023.12.12"]
[Round "1"]
[White "Petrukhina, Olga"]
[Black "Kozusek, Daniel"]
[Result "0-1"]
[Board "202"]
[TimeControl "180+1"]
[WhiteFideId "13703935"]
[BlackFideId "349500"]
[WhiteElo "2218"]
[BlackElo "2562"]
[WhiteTeam "KAZ"]
[BlackTeam "WLS"]
[WhiteClock "0:00:00"]
[BlackClock "0:01:13"]

1. d4 {[%clk 0:03:00]}  d5 {[%clk 0:02:59]} 2. c4 {[%clk 0:03:00]}  e6 {[%clk 0:03:00]} 3. g3 {[%clk 0:02:59]}  dxc4 {[%clk 0:02:59]} 4. Nf3 {[%clk 0:02:57]}  Nc6 {[%clk 0:02:58]} 5. Bg2 {[%clk 0:02:57]}  a6 {[%clk 0:02:59]} 6. O-O {[%clk 0:02:55]}  Rb8 {[%clk 0:03:00]} 7. e3 {[%clk 0:02:50]}  b5 {[%clk 0:02:59]} 8. Qe2 {[%clk 0:02:49]}  Bb7 {[%clk 0:02:55]} 9. b3 {[%clk 0:02:42]}  cxb3 {[%clk 0:02:54]} 10. axb3 {[%clk 0:02:43]}  Nf6 {[%clk 0:02:54]} 11. Nc3 {[%clk 0:02:42]}  Bb4 {[%clk 0:02:47]} 12. Bb2 {[%clk 0:02:41]}  O-O {[%clk 0:02:46]} 13. Rfc1 {[%clk 0:02:40]}  Re8 {[%clk 0:02:40]} 14. Na2 {[%clk 0:02:27]}  Bd6 {[%clk 0:02:40]} 15. Rd1 {[%clk 0:02:15]}  Nb4 {[%clk 0:02:33]} 16. Nxb4 {[%clk 0:02:11]}  Bxb4 {[%clk 0:02:34]} 17. Rac1 {[%clk 0:02:09]}  Be4 {[%clk 0:02:25]} 18. Bc3 {[%clk 0:01:56]}  Bxc3 {[%clk 0:01:55]} 19. Rxc3 {[%clk 0:01:57]}  Qd5 {[%clk 0:01:47]} 20. b4 {[%clk 0:01:41]}  Qb7 {[%clk 0:01:35]} 21. Rc5 {[%clk 0:01:16]}  Nd5 {[%clk 0:01:29]} 22. Qd2 {[%clk 0:00:19]}  Nxb4 {[%clk 0:01:23]} 23. Qxb4 {[%clk 0:00:13]}  Bxf3 {[%clk 0:01:23]} 24. Bxf3 {[%clk 0:00:13]}  Qxf3 {[%clk 0:01:24]} 25. Ra1 {[%clk 0:00:12]}  Qb7 {[%clk 0:01:21]} 26. Qc3 {[%clk 0:00:06]}  b4 {[%clk 0:01:20]} 27. Qb3 {[%clk 0:00:04]}  Red8 {[%clk 0:01:18]} 28. Rca5 {[%clk 0:00:03]}  Rd6 {[%clk 0:01:17]} 29. R1a4 {[%clk 0:00:03]}  Rc6 {[%clk 0:01:14]} 30. Ra1 {[%clk 0:00:00]}  Rc3 {[%clk 0:01:13]} 0-1

[Event "December 12 Early 2023"]
[Site "https://www.chess.com"]
[Date "2023.12.12"]
[Round "1"]
[White "Vakhidov, Shahzod"]
[Black "Borawski, Jakub"]
[Result "1-0"]
[Board "203"]
[TimeControl "180+1"]
[WhiteFideId "14205270"]
[BlackFideId "1143000"]
[WhiteElo "2561"]
[BlackElo "2215"]
[WhiteTeam "UZB"]
[BlackTeam "POL"]
[WhiteClock "0:01:50"]
[BlackClock "0:01:51"]

1. d4 {[%clk 0:02:59]}  Nf6 {[%clk 0:02:59]} 2. Nf3 {[%clk 0:03:00]}  e6 {[%clk 0:02:59]} 3. g3 {[%clk 0:03:00]}  b5 {[%clk 0:02:58]} 4. Bg2 {[%clk 0:03:00]}  Bb7 {[%clk 0:02:58]} 5. O-O {[%clk 0:03:01]}  d5 {[%clk 0:02:58]} 6. a4 {[%clk 0:03:00]}  b4 {[%clk 0:02:58]} 7. c4 {[%clk 0:03:01]}  dxc4 {[%clk 0:02:55]} 8. Qc2 {[%clk 0:02:57]}  Nbd7 {[%clk 0:02:48]} 9. a5 {[%clk 0:02:53]}  Bd5 {[%clk 0:02:45]} 10. Nbd2 {[%clk 0:02:52]}  b3 {[%clk 0:02:35]} 11. Qc3 {[%clk 0:02:47]}  Rb8 {[%clk 0:02:34]} 12. Nxc4 {[%clk 0:02:37]}  Bb4 {[%clk 0:02:22]} 13. Qxb3 {[%clk 0:02:13]}  Bxa5 {[%clk 0:02:22]} 14. Qa4 {[%clk 0:02:05]}  Bb6 {[%clk 0:02:16]} 15. Nxb6 {[%clk 0:01:57]}  axb6 {[%clk 0:02:16]} 16. Ne5 {[%clk 0:01:51]}  Bxg2 {[%clk 0:01:59]} 17. Kxg2 {[%clk 0:01:52]}  O-O {[%clk 0:01:59]} 18. Nc6 {[%clk 0:01:50]}  Qc8 {[%clk 0:01:51]} 19. Ne7+ {[%clk 0:01:50]} 1-0

[Event "December 12 Early 2023"]
[Site "https://www.chess.com"]
[Date "2023.12.12"]
[Round "1"]
[White "Belov, Alexei"]
[Black "Vanek, Tomas"]
[Result "1-0"]
[Board "205"]
[TimeControl "180+1"]
[WhiteFideId "4128206"]
[BlackFideId "313459"]
[WhiteElo "2559"]
[BlackElo "2204"]
[WhiteTeam "RUS"]
[BlackTeam "CZE"]
[WhiteClock "0:01:42"]
[BlackClock "0:00:52"]

1. e4 {[%clk 0:03:00]}  c5 {[%clk 0:02:53]} 2. Nf3 {[%clk 0:03:00]}  Nc6 {[%clk 0:02:52]} 3. d4 {[%clk 0:03:01]}  cxd4 {[%clk 0:02:51]} 4. Nxd4 {[%clk 0:03:01]}  Nf6 {[%clk 0:02:50]} 5. Nc3 {[%clk 0:03:01]}  e5 {[%clk 0:02:49]} 6. Ndb5 {[%clk 0:03:01]}  d6 {[%clk 0:02:49]} 7. Bg5 {[%clk 0:03:01]}  a6 {[%clk 0:02:49]} 8. Na3 {[%clk 0:03:01]}  b5 {[%clk 0:02:49]} 9. Nd5 {[%clk 0:03:01]}  Be7 {[%clk 0:02:49]} 10. Bxf6 {[%clk 0:03:02]}  Bxf6 {[%clk 0:02:49]} 11. c3 {[%clk 0:03:02]}  Bg5 {[%clk 0:02:48]} 12. Nc2 {[%clk 0:03:02]}  Rb8 {[%clk 0:02:47]} 13. a4 {[%clk 0:02:58]}  bxa4 {[%clk 0:02:32]} 14. Ncb4 {[%clk 0:02:58]}  Nxb4 {[%clk 0:02:25]} 15. Nxb4 {[%clk 0:02:58]}  Bd7 {[%clk 0:02:06]} 16. Bxa6 {[%clk 0:02:55]}  Qb6 {[%clk 0:01:51]} 17. O-O {[%clk 0:02:47]}  O-O {[%clk 0:01:51]} 18. Qd3 {[%clk 0:02:40]}  Qc5 {[%clk 0:01:47]} 19. Bc4 {[%clk 0:02:35]}  Kh8 {[%clk 0:01:46]} 20. Na6 {[%clk 0:02:26]}  Qb6 {[%clk 0:01:43]} 21. Nxb8 {[%clk 0:02:26]}  Rxb8 {[%clk 0:01:43]} 22. Bxf7 {[%clk 0:02:04]}  Qxb2 {[%clk 0:01:40]} 23. Rab1 {[%clk 0:01:57]}  a3 {[%clk 0:01:32]} 24. Rxb2 {[%clk 0:01:57]}  axb2 {[%clk 0:01:32]} 25. Rb1 {[%clk 0:01:52]}  Bc1 {[%clk 0:01:30]} 26. Qxd6 {[%clk 0:01:51]}  Ra8 {[%clk 0:00:52]} 27. Bd5 {[%clk 0:01:42]} 1-0

[Event "December 12 Early 2023"]
[Site "https://www.chess.com"]
[Date "2023.12.12"]
[Round "1"]
[White "Osmonbekov, Talaibek"]
[Black "Shuvalov, Evgenij"]
[Result "0-1"]
[Board "206"]
[TimeControl "180+1"]
[WhiteFideId "2017253"]
[BlackFideId "4187237"]
[WhiteElo "2204"]
[BlackElo "2559"]
[WhiteTeam "USA"]
[BlackTeam "FID"]
[WhiteClock "0:00:00"]
[BlackClock "0:00:39"]

1. d4 {[%clk 0:02:59]}  Nf6 {[%clk 0:02:59]} 2. Nc3 {[%clk 0:02:58]}  e6 {[%clk 0:02:58]} 3. Bf4 {[%clk 0:02:58]}  a6 {[%clk 0:02:58]} 4. e3 {[%clk 0:02:49]}  d5 {[%clk 0:02:57]} 5. Nf3 {[%clk 0:02:44]}  c5 {[%clk 0:02:54]} 6. dxc5 {[%clk 0:02:42]}  Nc6 {[%clk 0:02:54]} 7. Bd3 {[%clk 0:02:43]}  Bxc5 {[%clk 0:02:52]} 8. O-O {[%clk 0:02:43]}  Qe7 {[%clk 0:02:50]} 9. Bg5 {[%clk 0:02:29]}  h6 {[%clk 0:02:46]} 10. Bh4 {[%clk 0:02:28]}  b5 {[%clk 0:02:27]} 11. a3 {[%clk 0:02:24]}  Bb7 {[%clk 0:02:27]} 12. e4 {[%clk 0:02:24]}  g5 {[%clk 0:02:11]} 13. Bg3 {[%clk 0:02:20]}  dxe4 {[%clk 0:02:10]} 14. Nxe4 {[%clk 0:02:19]}  Nxe4 {[%clk 0:02:09]} 15. Bxe4 {[%clk 0:02:20]}  f5 {[%clk 0:01:54]} 16. Bxc6+ {[%clk 0:02:19]}  Bxc6 {[%clk 0:01:55]} 17. Be5 {[%clk 0:02:18]}  O-O {[%clk 0:01:53]} 18. Nd4 {[%clk 0:02:10]}  Bd5 {[%clk 0:01:49]} 19. Qh5 {[%clk 0:02:07]}  Kh7 {[%clk 0:01:45]} 20. Rad1 {[%clk 0:01:47]}  Qf7 {[%clk 0:01:44]} 21. Qh3 {[%clk 0:01:23]}  Rad8 {[%clk 0:01:36]} 22. c3 {[%clk 0:01:22]}  Be4 {[%clk 0:01:26]} 23. f3 {[%clk 0:01:18]}  Bd5 {[%clk 0:01:18]} 24. Kh1 {[%clk 0:01:18]}  Rg8 {[%clk 0:01:10]} 25. Rd2 {[%clk 0:00:46]}  Qg6 {[%clk 0:01:08]} 26. Qg3 {[%clk 0:00:35]}  h5 {[%clk 0:01:03]} 27. Re1 {[%clk 0:00:26]}  h4 {[%clk 0:01:02]} 28. Qf2 {[%clk 0:00:24]}  h3 {[%clk 0:00:58]} 29. g3 {[%clk 0:00:21]}  g4 {[%clk 0:00:57]} 30. Kg1 {[%clk 0:00:20]}  gxf3 {[%clk 0:00:50]} 31. b4 {[%clk 0:00:15]}  Bb6 {[%clk 0:00:48]} 32. Re3 {[%clk 0:00:15]}  Qg4 {[%clk 0:00:46]} 33. Bf4 {[%clk 0:00:12]}  Qxf4 {[%clk 0:00:44]} 34. Kf1 {[%clk 0:00:09]}  Qg4 {[%clk 0:00:42]} 35. a4 {[%clk 0:00:06]}  f4 {[%clk 0:00:40]} 36. Rxf3 {[%clk 0:00:00]}  Bxf3 {[%clk 0:00:39]} 0-1

[Event "December 12 Early 2023"]
[Site "https://www.chess.com"]
[Date "2023.12.12"]
[Round "1"]
[White "Osmak, Yuliia"]
[Black "Yeritsyaan"]
[Result "1-0"]
[Board "207"]
[TimeControl "180+1"]
[WhiteFideId "14101602"]
[WhiteElo "2559"]
[BlackElo "2203"]
[WhiteTeam "UKR"]
[WhiteClock "0:00:24"]
[BlackClock "0:00:05"]

1. e4 {[%clk 0:03:00]}  g6 {[%clk 0:02:55]} 2. d4 {[%clk 0:03:00]}  Bg7 {[%clk 0:02:52]} 3. Nc3 {[%clk 0:03:00]}  c6 {[%clk 0:02:52]} 4. f4 {[%clk 0:02:59]}  d5 {[%clk 0:02:52]} 5. e5 {[%clk 0:02:59]}  h5 {[%clk 0:02:50]} 6. Nf3 {[%clk 0:02:54]}  Nh6 {[%clk 0:02:48]} 7. Be3 {[%clk 0:02:53]}  Bg4 {[%clk 0:02:44]} 8. h3 {[%clk 0:02:50]}  Bxf3 {[%clk 0:02:44]} 9. Qxf3 {[%clk 0:02:51]}  Nf5 {[%clk 0:02:45]} 10. Bf2 {[%clk 0:02:50]}  h4 {[%clk 0:02:40]} 11. Bd3 {[%clk 0:02:48]}  e6 {[%clk 0:02:41]} 12. O-O {[%clk 0:02:47]}  Nd7 {[%clk 0:02:35]} 13. Ne2 {[%clk 0:02:41]}  Rh5 {[%clk 0:02:24]} 14. b3 {[%clk 0:02:34]}  a5 {[%clk 0:02:18]} 15. Rab1 {[%clk 0:02:26]}  Kf8 {[%clk 0:02:03]} 16. c4 {[%clk 0:02:24]}  Kg8 {[%clk 0:02:00]} 17. Rfc1 {[%clk 0:02:22]}  Bf8 {[%clk 0:01:57]} 18. Kh2 {[%clk 0:02:11]}  a4 {[%clk 0:01:39]} 19. bxa4 {[%clk 0:02:02]}  Nb6 {[%clk 0:01:20]} 20. c5 {[%clk 0:01:56]}  Nc4 {[%clk 0:00:48]} 21. Bxc4 {[%clk 0:01:54]}  dxc4 {[%clk 0:00:49]} 22. Rxc4 {[%clk 0:01:54]}  Ra7 {[%clk 0:00:45]} 23. Nc3 {[%clk 0:01:52]}  Ne7 {[%clk 0:00:34]} 24. Rcb4 {[%clk 0:01:48]}  Qd7 {[%clk 0:00:33]} 25. R4b2 {[%clk 0:01:29]}  Nd5 {[%clk 0:00:33]} 26. Nxd5 {[%clk 0:01:25]}  cxd5 {[%clk 0:00:31]} 27. Rb4 {[%clk 0:01:21]}  Bh6 {[%clk 0:00:28]} 28. Be3 {[%clk 0:01:09]}  Qe7 {[%clk 0:00:20]} 29. Qf2 {[%clk 0:00:55]}  Rf5 {[%clk 0:00:10]} 30. Qd2 {[%clk 0:00:51]}  Kh7 {[%clk 0:00:09]} 31. a5 {[%clk 0:00:46]}  g5 {[%clk 0:00:09]} 32. fxg5 {[%clk 0:00:46]}  Bxg5 {[%clk 0:00:09]} 33. Bxg5 {[%clk 0:00:46]}  Rxg5 {[%clk 0:00:10]} 34. Rxb7 {[%clk 0:00:40]}  Rxb7 {[%clk 0:00:07]} 35. Rxb7 {[%clk 0:00:41]}  Rxg2+ {[%clk 0:00:08]} 36. Kxg2 {[%clk 0:00:34]}  Qxb7 {[%clk 0:00:09]} 37. Qc2+ {[%clk 0:00:32]}  Kg7 {[%clk 0:00:08]} 38. c6 {[%clk 0:00:33]}  Qc7 {[%clk 0:00:06]} 39. a6 {[%clk 0:00:32]}  f6 {[%clk 0:00:07]} 40. a7 {[%clk 0:00:32]}  Qxa7 {[%clk 0:00:06]} 41. c7 {[%clk 0:00:32]}  Qxd4 {[%clk 0:00:05]} 42. c8=Q {[%clk 0:00:27]}  Qxe5 {[%clk 0:00:05]} 43. Qd7+ {[%clk 0:00:26]}  Kh6 {[%clk 0:00:05]} 44. Qdh7+ {[%clk 0:00:26]}  Kg5 {[%clk 0:00:05]} 45. Qhg6+ {[%clk 0:00:24]}  Kf4 {[%clk 0:00:05]} 46. Qg4+ {[%clk 0:00:24]}  Ke3 {[%clk 0:00:05]} 47. Qce2# {[%clk 0:00:24]} 1-0

[Event "December 12 Early 2023"]
[Site "https://www.chess.com"]
[Date "2023.12.12"]
[Round "1"]
[White "Guzman Lozano, Campo Elias"]
[Black "De Boer, Eelke"]
[Result "0-1"]
[Board "208"]
[TimeControl "180+1"]
[WhiteFideId "4403746"]
[BlackFideId "1048120"]
[WhiteElo "2195"]
[BlackElo "2558"]
[WhiteTeam "COL"]
[BlackTeam "NED"]
[WhiteClock "0:00:00"]
[BlackClock "0:00:02"]

1. e4 {[%clk 0:02:58]}  c5 {[%clk 0:02:59]} 2. c3 {[%clk 0:02:57]}  Nf6 {[%clk 0:02:57]} 3. d3 {[%clk 0:02:57]}  Nc6 {[%clk 0:02:53]} 4. Nf3 {[%clk 0:02:56]}  d5 {[%clk 0:02:39]} 5. Qe2 {[%clk 0:02:51]}  Bg4 {[%clk 0:02:33]} 6. h3 {[%clk 0:02:49]}  Bh5 {[%clk 0:02:31]} 7. g4 {[%clk 0:02:49]}  Bg6 {[%clk 0:02:31]} 8. e5 {[%clk 0:02:48]}  Nd7 {[%clk 0:02:17]} 9. e6 {[%clk 0:02:47]}  Nf6 {[%clk 0:02:04]} 10. exf7+ {[%clk 0:02:46]}  Bxf7 {[%clk 0:02:05]} 11. Bg5 {[%clk 0:02:43]}  Qd6 {[%clk 0:02:04]} 12. Nbd2 {[%clk 0:02:37]}  O-O-O {[%clk 0:02:03]} 13. Bg2 {[%clk 0:02:33]}  h5 {[%clk 0:01:48]} 14. Bxf6 {[%clk 0:02:12]}  exf6 {[%clk 0:01:49]} 15. O-O-O {[%clk 0:02:08]}  Re8 {[%clk 0:01:40]} 16. Qf1 {[%clk 0:02:06]}  Qf4 {[%clk 0:01:27]} 17. Nh2 {[%clk 0:01:49]}  Bd6 {[%clk 0:01:23]} 18. Kb1 {[%clk 0:01:40]}  hxg4 {[%clk 0:01:17]} 19. Nxg4 {[%clk 0:01:39]}  Rh5 {[%clk 0:01:03]} 20. Ne3 {[%clk 0:01:38]}  Ne7 {[%clk 0:00:46]} 21. Bf3 {[%clk 0:01:34]}  Rhh8 {[%clk 0:00:37]} 22. Qg2 {[%clk 0:01:29]}  g5 {[%clk 0:00:17]} 23. Nxd5 {[%clk 0:01:24]}  Nxd5 {[%clk 0:00:15]} 24. Bxd5 {[%clk 0:01:24]}  Bxd5 {[%clk 0:00:15]} 25. Qxd5 {[%clk 0:01:23]}  Rd8 {[%clk 0:00:14]} 26. Ne4 {[%clk 0:01:21]}  Be7 {[%clk 0:00:11]} 27. Qe6+ {[%clk 0:01:21]}  Rd7 {[%clk 0:00:11]} 28. Rhe1 {[%clk 0:01:12]}  Kc7 {[%clk 0:00:09]} 29. Ng3 {[%clk 0:00:59]}  Rhd8 {[%clk 0:00:05]} 30. Qe3 {[%clk 0:00:54]}  Bd6 {[%clk 0:00:04]} 31. Qxf4 {[%clk 0:00:52]}  Bxf4 {[%clk 0:00:05]} 32. Ne4 {[%clk 0:00:52]}  Rxd3 {[%clk 0:00:05]} 33. Rxd3 {[%clk 0:00:51]}  Rxd3 {[%clk 0:00:06]} 34. Nxf6 {[%clk 0:00:51]}  Rxh3 {[%clk 0:00:06]} 35. Re7+ {[%clk 0:00:48]}  Kc6 {[%clk 0:00:05]} 36. Re6+ {[%clk 0:00:46]}  Kc7 {[%clk 0:00:06]} 37. Re7+ {[%clk 0:00:46]}  Kb6 {[%clk 0:00:06]} 38. Nd5+ {[%clk 0:00:44]}  Kc6 {[%clk 0:00:07]} 39. Nxf4 {[%clk 0:00:44]}  gxf4 {[%clk 0:00:08]} 40. Rf7 {[%clk 0:00:44]}  Rf3 {[%clk 0:00:08]} 41. Kc2 {[%clk 0:00:40]}  Rxf2+ {[%clk 0:00:05]} 42. Kb3 {[%clk 0:00:40]}  a6 {[%clk 0:00:03]} 43. a4 {[%clk 0:00:40]}  b5 {[%clk 0:00:03]} 44. Rf6+ {[%clk 0:00:38]}  Kb7 {[%clk 0:00:04]} 45. a5 {[%clk 0:00:38]}  c4+ {[%clk 0:00:03]} 46. Kb4 {[%clk 0:00:34]}  Rxb2+ {[%clk 0:00:03]} 47. Kc5 {[%clk 0:00:35]}  Rb3 {[%clk 0:00:02]} 48. Rf7+ {[%clk 0:00:33]}  Kb8 {[%clk 0:00:02]} 49. Kb6 {[%clk 0:00:30]}  Kc8 {[%clk 0:00:03]} 50. Rxf4 {[%clk 0:00:27]}  Rxc3 {[%clk 0:00:02]} 51. Kxa6 {[%clk 0:00:26]}  b4 {[%clk 0:00:03]} 52. Kb5 {[%clk 0:00:26]}  b3 {[%clk 0:00:03]} 53. Kc6 {[%clk 0:00:10]}  Kd8 {[%clk 0:00:03]} 54. Rf8+ {[%clk 0:00:09]}  Ke7 {[%clk 0:00:03]} 55. Rb8 {[%clk 0:00:09]}  Rc2 {[%clk 0:00:03]} 56. a6 {[%clk 0:00:06]}  Ra2 {[%clk 0:00:03]} 57. Kc5 {[%clk 0:00:03]}  b2 {[%clk 0:00:02]} 58. Kxc4 {[%clk 0:00:00]}  Ra1 {[%clk 0:00:02]} 0-1